fUSD/lending_fUSD_20241222
["ID","MTS","AMOUNT","RATE_DAILY","PERIOD"]
[346271274,1734856238957,-1985.5744,0.000189,2]
[346271276,1734856238966,-76145.30854852,0.00018978,2]
[346271277,1734856238975,-60202.7625792,0.00019,5]
[346271278,1734856238986,-600.0,0.00019,2]
[346271281,1734856238996,-93073.0,0.00019,2]
[346271282,1734856239006,-490.139,0.00019,2]
[346271284,1734856239015,-1759.41555607,0.00019,2]
[346271285,1734856239024,-8913.85471752,0.00019,2]
[346271286,1734856239032,-961.61,0.00019,2]
[346271287,1734856239042,-300.0,0.00019014,2]
[346271288,1734856239051,-152.28219762,0.00019014,2]
[346271289,1734856239061,-5000.0,0.00019078,2]
[346271290,1734856239070,-75440.2900677,0.00019129,2]
[346271291,1734856239080,-169.16,0.00019148,2]
[346271292,1734856239089,-10321.43744451,0.00019177,2]
[346271293,1734856239098,-500.0,0.00019178,2]
[346271294,1734856239108,-500.0,0.00019178,2]
[346271295,1734856239117,-500.0,0.00019178,2]
[346271296,1734856239126,-500.0,0.00019178,2]
[346271297,1734856239135,-500.0,0.00019178,2]
[346271298,1734856239144,-500.0,0.00019178,2]
[346271299,1734856239153,-547.43,0.00019178,2]
[346271300,1734856239162,-500.0,0.00019178,2]
[346271301,1734856239172,-500.0,0.00019178,2]
[346271302,1734856239181,-500.0,0.00019178,2]
[346271303,1734856239190,-500.0,0.00019178,2]
[346271304,1734856239199,-500.0,0.00019178,2]
[346271305,1734856239208,-500.0,0.00019178,2]
[346271306,1734856239218,-500.0,0.00019178,2]
[346271307,1734856239227,-500.0,0.00019178,2]
[346271308,1734856239238,-500.0,0.00019178,2]
[346271309,1734856239248,-500.0,0.00019178,2]
[346271310,1734856239257,-500.0,0.00019178,2]
[346271311,1734856239267,-747.54,0.00019178,2]
[346271312,1734856239276,-500.0,0.00019178,2]
[346271313,1734856239285,-500.0,0.00019178,2]
[346271314,1734856239294,-500.0,0.00019178,2]
[346271315,1734856239304,-500.0,0.00019178,2]
[346271316,1734856239314,-500.0,0.00019178,2]
[346271317,1734856239323,-500.0,0.00019178,2]
[346271318,1734856239332,-500.0,0.00019178,2]
[346271319,1734856239341,-500.0,0.00019178,2]
[346271320,1734856239351,-500.0,0.00019178,2]
[346271321,1734856239361,-900.58,0.00019178,2]
[346271322,1734856239370,-500.0,0.00019178,2]
[346271323,1734856239380,-500.0,0.00019178,2]
[346271324,1734856239389,-507.82216895,0.00019178,2]
[346271325,1734856239401,-500.0,0.00019178,2]
[346271326,1734856239411,-500.0,0.00019178,2]
[346271327,1734856239421,-500.0,0.00019178,2]
[346271328,1734856239430,-500.0,0.00019178,2]
[346271329,1734856239439,-478.84113684,0.00019178,2]
[346271330,1734856239449,-500.0,0.00019178,2]
[346271331,1734856239458,-500.0,0.00019178,2]
[346271332,1734856239467,-500.0,0.00019178,2]
[346271333,1734856239476,-500.0,0.00019178,2]
[346271334,1734856239488,-500.0,0.00019178,2]
[346271335,1734856239498,-500.0,0.00019178,2]
[346271336,1734856239507,-500.0,0.00019178,2]
[346271337,1734856239516,-500.0,0.00019178,2]
[346271338,1734856239526,-500.0,0.00019178,2]
[346271339,1734856239535,-500.0,0.00019178,2]
[346271340,1734856239544,-500.0,0.00019178,2]
[346271341,1734856239553,-289.158772,0.00019178,2]
[346271342,1734856239563,-500.0,0.00019178,2]
[346271343,1734856239572,-500.0,0.00019178,2]
[346271344,1734856239581,-453.171912,0.00019178,2]
[346271345,1734856239590,-154.497728,0.00019178,2]
[346271346,1734856239599,-500.0,0.00019178,2]
[346271347,1734856239609,-500.0,0.00019178,2]
[346271348,1734856239618,-500.0,0.00019178,2]
[346271349,1734856239627,-326.88653331,0.00019178,2]
[346271350,1734856239637,-500.0,0.00019178,2]
[346271351,1734856239646,-500.0,0.00019178,2]
[346271352,1734856239655,-500.0,0.00019178,2]
[346271353,1734856239664,-728.86,0.00019178,2]
[346271354,1734856239673,-561.85,0.00019178,2]
[346271355,1734856239682,-500.0,0.00019178,2]
[346271356,1734856239691,-500.0,0.00019178,2]
[346271357,1734856239700,-500.0,0.00019178,2]
[346271358,1734856239710,-500.0,0.00019178,2]
[346271359,1734856239719,-500.0,0.00019178,2]
[346271360,1734856239728,-448.36532221,0.00019178,2]
[346271361,1734856239738,-500.0,0.00019178,2]
[346271362,1734856239746,-500.0,0.00019178,2]
[346271363,1734856239757,-500.0,0.00019178,2]
[346271364,1734856239768,-930.7,0.00019178,2]
[346271365,1734856239777,-500.0,0.00019178,2]
[346271366,1734856239786,-500.0,0.00019178,2]
[346271367,1734856239795,-500.0,0.00019178,2]
[346271368,1734856239804,-1344.63,0.00019178,2]
[346271369,1734856239814,-500.0,0.00019178,2]
[346271370,1734856239823,-694.08,0.00019178,2]
[346271371,1734856239832,-500.0,0.00019178,2]
[346271372,1734856239841,-653.81,0.00019178,2]
[346271373,1734856239850,-500.0,0.00019178,2]
[346271374,1734856239859,-500.0,0.00019178,2]
[346271375,1734856239869,-500.0,0.00019178,2]
[346271376,1734856239878,-500.0,0.00019178,2]
[346271377,1734856239887,-500.0,0.00019178,2]
[346271378,1734856239896,-500.0,0.00019178,2]
[346271379,1734856239906,-500.0,0.00019178,2]
[346271380,1734856239915,-500.0,0.00019178,2]
[346271381,1734856239924,-500.0,0.00019178,2]
[346271382,1734856239933,-519.22,0.00019178,2]
[346271383,1734856239942,-500.0,0.00019178,2]
[346271384,1734856239951,-500.0,0.00019178,2]
[346271385,1734856239960,-500.0,0.00019178,2]
[346271386,1734856239969,-500.0,0.00019178,2]
[346271387,1734856239978,-500.0,0.00019178,2]
[346271388,1734856239988,-500.0,0.00019178,2]
[346271389,1734856239998,-500.0,0.00019178,2]
[346271390,1734856240006,-500.0,0.00019178,2]
[346271391,1734856240016,-500.0,0.00019178,2]
[346271392,1734856240025,-500.0,0.00019178,2]
[346271393,1734856240034,-500.0,0.00019178,2]
[346271394,1734856240043,-500.0,0.00019178,2]
[346271395,1734856240052,-154.218016,0.00019178,2]
[346271396,1734856240060,-500.0,0.00019178,2]
[346271397,1734856240070,-151.057304,0.00019178,2]
[346271398,1734856240079,-500.0,0.00019178,2]
[346271399,1734856240090,-312.29,0.00019178,2]
[346271400,1734856240100,-500.0,0.00019178,2]
[346271401,1734856240110,-500.0,0.00019178,2]
[346271402,1734856240119,-979.99,0.00019178,2]
[346271403,1734856240128,-764.92,0.00019178,2]
[346271404,1734856240138,-500.0,0.00019178,2]
[346271405,1734856240147,-500.0,0.00019178,2]
[346271406,1734856240157,-500.0,0.00019178,2]
[346271407,1734856240166,-500.0,0.00019178,2]
[346271408,1734856240175,-699.85,0.00019178,2]
[346271409,1734856240185,-1603.42,0.00019178,2]
[346271410,1734856240194,-500.0,0.00019178,2]
[346271411,1734856240203,-794.77,0.00019178,2]
[346271412,1734856240212,-1272.07,0.00019178,2]
[346271413,1734856240221,-4719.36,0.00019178,2]
[346271414,1734856240230,-1323.12,0.00019178,2]
[346271415,1734856240239,-1387.89,0.00019178,2]
[346271417,1734856240249,-509.11721053,0.00019178,2]
[346271432,1734856240449,-949.11,0.00019178,2]
[346271433,1734856240459,-500.0,0.00019178,2]
[346271434,1734856240467,-532.85,0.00019178,2]
[346271435,1734856240476,-500.0,0.00019178,2]
[346271436,1734856240487,-500.0,0.00019178,2]
[346271437,1734856240496,-500.0,0.00019178,2]
[346271438,1734856240505,-675.34,0.00019178,2]
[346271439,1734856240514,-500.0,0.00019178,2]
[346271440,1734856240523,-500.0,0.00019178,2]
[346271441,1734856240533,-158.075001,0.00019178,2]
[346271442,1734856240542,-172.875664,0.00019178,2]
[346271443,1734856240551,-152.062675,0.00019178,2]
[346271444,1734856240560,-953.46,0.00019178,2]
[346271445,1734856240569,-500.0,0.00019178,2]
[346271446,1734856240577,-500.0,0.00019178,2]
[346271447,1734856240586,-523.88275692,0.00019178,2]
[346271448,1734856240596,-504.8948333,0.00019178,2]
[346271449,1734856240605,-1016.22,0.00019178,2]
[346271450,1734856240614,-500.0,0.00019178,2]
[346271451,1734856240623,-500.0,0.00019178,2]
[346271452,1734856240633,-3996.53,0.00019178,2]
[346271453,1734856240643,-501.59063101,0.00019178,2]
[346271454,1734856240652,-500.0,0.00019178,2]
[346271455,1734856240661,-500.0,0.00019178,2]
[346271456,1734856240670,-1868.73,0.00019178,2]
[346271457,1734856240680,-502.7377156,0.00019178,2]
[346271458,1734856240689,-504.34522655,0.00019178,2]
[346271459,1734856240698,-501.63381721,0.00019178,2]
[346271460,1734856240707,-500.0,0.00019178,2]
[346271461,1734856240717,-500.0,0.00019178,2]
[346271462,1734856240726,-2629.11,0.00019178,2]
[346271463,1734856240736,-506.27133871,0.00019178,2]
[346271464,1734856240745,-500.0,0.00019178,2]
[346271465,1734856240757,-500.0,0.00019178,2]
[346271466,1734856240768,-560.51469905,0.00019178,2]
[346271467,1734856240777,-544.01,0.00019178,2]
[346271468,1734856240787,-1038.3,0.00019178,2]
[346271469,1734856240796,-500.0,0.00019178,2]
[346271470,1734856240806,-502.37863689,0.00019178,2]
[346271471,1734856240816,-500.0,0.00019178,2]
[346271472,1734856240825,-502.62917549,0.00019178,2]
[346271473,1734856240834,-503.7149174,0.00019178,2]
[346271474,1734856240846,-500.0,0.00019178,2]
[346271475,1734856240856,-4553.72,0.00019178,2]
[346271476,1734856240865,-502.41838256,0.00019178,2]
[346271477,1734856240875,-500.0,0.00019178,2]
[346271478,1734856240884,-500.0,0.00019178,2]
[346271479,1734856240893,-502.11280253,0.00019178,2]
[346271480,1734856240903,-500.0,0.00019178,2]
[346271481,1734856240912,-502.21887801,0.00019178,2]
[346271482,1734856240921,-829.68,0.00019178,2]
[346271483,1734856240931,-500.0,0.00019178,2]
[346271484,1734856240940,-507.66785438,0.00019178,2]
[346271485,1734856240950,-1641.73,0.00019178,2]
[346271486,1734856240961,-500.0,0.00019178,2]
[346271487,1734856240970,-500.0,0.00019178,2]
[346271488,1734856240980,-500.0,0.00019178,2]
[346271489,1734856240990,-760.4,0.00019178,2]
[346271490,1734856241000,-500.0,0.00019178,2]
[346271491,1734856241009,-1493.1,0.00019178,2]
[346271492,1734856241019,-503.80011993,0.00019178,2]
[346271493,1734856241028,-153.596835,0.00019178,2]
[346271494,1734856241038,-502.43583529,0.00019178,2]
[346271495,1734856241047,-500.0,0.00019178,2]
[346271496,1734856241056,-156.508784,0.00019178,2]
[346271497,1734856241066,-154.024321,0.00019178,2]
[346271498,1734856241075,-152.965769,0.00019178,2]
[346271499,1734856241084,-501.47409652,0.00019178,2]
[346271500,1734856241093,-500.0,0.00019178,2]
[346271501,1734856241103,-829.51,0.00019178,2]
[346271502,1734856241112,-1234.34,0.00019178,2]
[346271503,1734856241121,-636.51,0.00019178,2]
[346271504,1734856241131,-500.0,0.00019178,2]
[346271505,1734856241142,-500.0,0.00019178,2]
[346271506,1734856241153,-500.0,0.00019178,2]
[346271507,1734856241163,-5377.15,0.00019178,2]
[346271508,1734856241174,-711.77,0.00019178,2]
[346271509,1734856241183,-500.0,0.00019178,2]
[346271510,1734856241194,-500.0,0.00019178,2]
[346271511,1734856241203,-997.53,0.00019178,2]
[346271512,1734856241212,-3559.48,0.00019178,2]
[346271513,1734856241222,-500.0,0.00019178,2]
[346271514,1734856241231,-932.11,0.00019178,2]
[346271515,1734856241241,-500.0,0.00019178,2]
[346271516,1734856241250,-500.0,0.00019178,2]
[346271517,1734856241259,-2264.03,0.00019178,2]
[346271518,1734856241268,-500.0,0.00019178,2]
[346271519,1734856241277,-500.0,0.00019178,2]
[346271520,1734856241286,-2889.53,0.00019178,2]
[346271521,1734856241296,-624.68,0.00019178,2]
[346271522,1734856241305,-1079.52,0.00019178,2]
[346271523,1734856241315,-501.74939505,0.00019178,2]
[346271524,1734856241323,-500.0,0.00019178,2]
[346271525,1734856241332,-500.0,0.00019178,2]
[346271526,1734856241341,-747.81,0.00019178,2]
[346271527,1734856241350,-3792.17,0.00019178,2]
[346271528,1734856241359,-1589.03,0.00019178,2]
[346271529,1734856241369,-500.0,0.00019178,2]
[346271530,1734856241378,-8586.6,0.00019178,2]
[346271531,1734856241387,-3476.9,0.00019178,2]
[346271532,1734856241396,-500.0,0.00019178,2]
[346271533,1734856241405,-500.0,0.00019178,2]
[346271534,1734856241414,-1150.96,0.00019178,2]
[346271535,1734856241423,-500.0,0.00019178,2]
[346271536,1734856241432,-500.0,0.00019178,2]
[346271537,1734856241441,-3542.95,0.00019178,2]
[346271538,1734856241450,-2081.29,0.00019178,2]
[346271539,1734856241459,-839.28,0.00019178,2]
[346271540,1734856241467,-1890.99,0.00019178,2]
[346271541,1734856241476,-500.0,0.00019178,2]
[346271542,1734856241485,-500.0,0.00019178,2]
[346271543,1734856241495,-711.25,0.00019178,2]
[346271544,1734856241504,-500.0,0.00019178,2]
[346271545,1734856241515,-500.0,0.00019178,2]
[346271546,1734856241524,-1001.01,0.00019178,2]
[346271547,1734856241533,-2032.15,0.00019178,2]
[346271548,1734856241542,-963.05,0.00019178,2]
[346271549,1734856241551,-1120.07,0.00019178,2]
[346271550,1734856241560,-500.0,0.00019178,2]
[346271551,1734856241568,-500.0,0.00019178,2]
[346271552,1734856241577,-500.0,0.00019178,2]
[346271553,1734856241586,-1022.28,0.00019178,2]
[346271554,1734856241595,-500.0,0.00019178,2]
[346271555,1734856241604,-6230.93,0.00019178,2]
[346271556,1734856241613,-3465.88,0.00019178,2]
[346271557,1734856241622,-500.0,0.00019178,2]
[346271558,1734856241631,-1019.96,0.00019178,2]
[346271559,1734856241639,-500.0,0.00019178,2]
[346271560,1734856241648,-3372.96,0.00019178,2]
[346271561,1734856241658,-3403.75,0.00019178,2]
[346271562,1734856241667,-519.78,0.00019178,2]
[346271563,1734856241677,-10899.82,0.00019178,2]
[346271564,1734856241686,-3329.73,0.00019178,2]
[346271565,1734856241695,-500.0,0.00019178,2]
[346271566,1734856241705,-500.0,0.00019178,2]
[346271567,1734856241714,-1461.44,0.00019178,2]
[346271568,1734856241723,-4748.16,0.00019178,2]
[346271569,1734856241732,-4119.05,0.00019178,2]
[346271570,1734856241743,-500.0,0.00019178,2]
[346271571,1734856241752,-500.0,0.00019178,2]
[346271572,1734856241766,-500.0,0.00019178,2]
[346271573,1734856241775,-500.0,0.00019178,2]
[346271574,1734856241785,-500.0,0.00019178,2]
[346271575,1734856241795,-500.0,0.00019178,2]
[346271576,1734856241805,-1317.01,0.00019178,2]
[346271577,1734856241817,-537.65,0.00019178,2]
[346271578,1734856241838,-500.0,0.00019178,2]
[346271579,1734856241847,-1058.34,0.00019178,2]
[346271580,1734856241857,-500.0,0.00019178,2]
[346271581,1734856241867,-2823.78,0.00019178,2]
[346271582,1734856241876,-1679.9,0.00019178,2]
[346271583,1734856241886,-500.0,0.00019178,2]
[346271584,1734856241896,-500.0,0.00019178,2]
[346271585,1734856241905,-500.0,0.00019178,2]
[346271586,1734856241914,-703.34,0.00019178,2]
[346271587,1734856241923,-500.0,0.00019178,2]
[346271588,1734856241932,-500.0,0.00019178,2]
[346271589,1734856241942,-568.03,0.00019178,2]
[346271590,1734856241951,-5420.85,0.00019178,2]
[346271591,1734856241960,-500.0,0.00019178,2]
[346271592,1734856241969,-521.18,0.00019178,2]
[346271593,1734856241978,-500.0,0.00019178,2]
[346271594,1734856241988,-500.0,0.00019178,2]
[346271595,1734856241997,-500.0,0.00019178,2]
[346271596,1734856242006,-2478.34,0.00019178,2]
[346271597,1734856242015,-500.0,0.00019178,2]
[346271598,1734856242025,-500.0,0.00019178,2]
[346271599,1734856242034,-500.0,0.00019178,2]
[346271600,1734856242043,-500.0,0.00019178,2]
[346271601,1734856242052,-590.3,0.00019178,2]
[346271602,1734856242061,-718.96,0.00019178,2]
[346271603,1734856242073,-1486.91,0.00019178,2]
[346271604,1734856242088,-874.76,0.00019178,2]
[346271605,1734856242098,-527.70549031,0.00019178,2]
[346271606,1734856242107,-500.0,0.00019178,2]
[346271607,1734856242116,-500.0,0.00019178,2]
[346271608,1734856242125,-500.0,0.00019178,2]
[346271609,1734856242135,-500.0,0.00019178,2]
[346271610,1734856242144,-501.75768626,0.00019178,2]
[346271611,1734856242154,-500.0,0.00019178,2]
[346271612,1734856242164,-507.39501079,0.00019178,2]
[346271613,1734856242173,-957.24,0.00019178,2]
[346271614,1734856242182,-905.81,0.00019178,2]
[346271615,1734856242192,-744.81,0.00019178,2]
[346271616,1734856242202,-500.0,0.00019178,2]
[346271617,1734856242211,-500.0,0.00019178,2]
[346271618,1734856242220,-500.0,0.00019178,2]
[346271619,1734856242229,-500.0,0.00019178,2]
[346271620,1734856242239,-501.91797958,0.00019178,2]
[346271621,1734856242248,-500.0,0.00019178,2]
[346271622,1734856242257,-503.11048867,0.00019178,2]
[346271623,1734856242268,-824.18,0.00019178,2]
[346271624,1734856242277,-1396.87,0.00019178,2]
[346271625,1734856242288,-610.7,0.00019178,2]
[346271626,1734856242297,-500.0,0.00019178,2]
[346271627,1734856242307,-500.0,0.00019178,2]
[346271628,1734856242316,-500.0,0.00019178,2]
[346271629,1734856242327,-500.0,0.00019178,2]
[346271630,1734856242336,-4000.0,0.00019178,2]
[346271631,1734856242345,-152.28219766,0.0001926,2]
[346271632,1734856242354,-152.28219762,0.0001926,2]
[346271633,1734856242363,-152.0,0.00019294,3]
[346271634,1734856242372,-1600.8,0.00019316,2]
[346271635,1734856242381,-1140.47,0.00019322,2]
[346271636,1734856242391,-500.0,0.00019322,2]
[346271637,1734856242400,-500.0,0.00019322,2]
[346271638,1734856242410,-500.0,0.00019322,2]
[346271639,1734856242419,-1029.31,0.00019322,2]
[346271640,1734856242428,-830.65,0.00019322,2]
[346271641,1734856242438,-2179.49,0.00019322,2]
[346271642,1734856242448,-1844.99,0.00019322,2]
[346271643,1734856242457,-642.42,0.00019322,2]
[346271644,1734856242466,-13134.24,0.00019322,2]
[346271645,1734856242476,-1442.24,0.00019322,2]
[346271646,1734856242485,-970.79,0.00019322,2]
[346271647,1734856242497,-500.0,0.00019322,2]
[346271648,1734856242507,-1139.97,0.00019322,2]
[346271649,1734856242516,-15871.18,0.00019322,2]
[346271650,1734856242527,-500.0,0.00019322,2]
[346271651,1734856242537,-1635.83,0.00019322,2]
[346271652,1734856242547,-1817.32,0.00019322,2]
[346271653,1734856242557,-1063.16,0.00019322,2]
[346271654,1734856242566,-5048.67,0.00019322,2]
[346271655,1734856242576,-1668.24,0.00019322,2]
[346271656,1734856242585,-500.0,0.00019322,2]
[346271657,1734856242595,-1000.0,0.00019322,2]
[346271658,1734856242605,-938.74,0.00019322,2]
[346271659,1734856242614,-500.0,0.00019322,2]
[346271660,1734856242624,-501.04436566,0.00019322,2]
[346271661,1734856242634,-22918.63,0.00019339,2]
[346271662,1734856242643,-999.99,0.00019339,2]
[346271663,1734856242653,-20861.25,0.00019339,2]
[346271664,1734856242662,-1509.28,0.00019339,2]
[346271665,1734856242671,-9999.99,0.00019339,2]
[346271666,1734856242681,-392.04,0.00019339,2]
[346271667,1734856242690,-9999.99,0.00019339,2]
[346271668,1734856242700,-327.31,0.00019339,2]
[346271669,1734856242710,-1861.46,0.00019339,2]
[346271670,1734856242720,-210.85,0.00019339,7]
[346271671,1734856242729,-150.99,0.00019339,2]
[346271672,1734856242740,-150.99,0.00019339,2]
[346271673,1734856242750,-476.98,0.00019339,2]
[346271674,1734856242763,-1120.21,0.00019339,2]
[346271675,1734856242773,-955.27,0.00019339,2]
[346271676,1734856242782,-2868.3608,0.00019352,2]
[346271677,1734856242792,-500.0,0.00019451,2]
[346271678,1734856242803,-500.0,0.00019451,2]
[346271679,1734856242813,-500.0,0.00019451,2]
[346271680,1734856242823,-500.0,0.00019451,2]
[346271681,1734856242833,-518.16043498,0.00019451,2]
[346271682,1734856242844,-500.0,0.00019451,2]
[346271683,1734856242855,-500.0,0.00019451,2]
[346271684,1734856242864,-489.0,0.00019451,2]
[346271685,1734856242874,-414.73386655,0.00019451,2]
[346271686,1734856242883,-500.0,0.00019451,2]
[346271687,1734856242893,-500.0,0.00019451,2]
[346271688,1734856242902,-500.0,0.00019451,2]
[346271689,1734856242912,-500.0,0.00019451,2]
[346271690,1734856242921,-500.0,0.00019451,2]
[346271691,1734856242931,-500.0,0.00019451,2]
[346271692,1734856242941,-500.0,0.00019451,2]
[346271693,1734856242951,-500.0,0.00019451,2]
[346271694,1734856242961,-500.0,0.00019451,2]
[346271695,1734856242971,-200.0,0.00019451,2]
[346271696,1734856242981,-500.0,0.00019451,2]
[346271697,1734856242991,-500.0,0.00019451,2]
[346271698,1734856243000,-500.0,0.00019451,2]
[346271699,1734856243009,-333.14,0.00019451,2]
[346271700,1734856243019,-500.0,0.00019451,2]
[346271701,1734856243029,-500.0,0.00019451,2]
[346271702,1734856243038,-500.0,0.00019451,2]
[346271703,1734856243048,-500.0,0.00019451,2]
[346271704,1734856243057,-500.0,0.00019451,2]
[346271705,1734856243067,-500.0,0.00019451,2]
[346271706,1734856243076,-500.0,0.00019451,2]
[346271707,1734856243086,-500.0,0.00019451,2]
[346271708,1734856243096,-500.0,0.00019451,2]
[346271709,1734856243105,-446.94872055,0.00019451,2]
[346271710,1734856243114,-500.0,0.00019451,2]
[346271711,1734856243124,-500.0,0.00019451,2]
[346271712,1734856243133,-500.0,0.00019451,2]
[346271713,1734856243143,-602.13361693,0.00019451,2]
[346271714,1734856243152,-500.0,0.00019451,2]
[346271715,1734856243161,-500.0,0.00019451,2]
[346271716,1734856243173,-500.0,0.00019451,2]
[346271718,1734856243183,-500.0,0.00019451,2]
[346271720,1734856243192,-500.0,0.00019451,2]
[346271722,1734856243202,-903.8,0.00019451,2]
[346271723,1734856243211,-500.0,0.00019451,2]
[346271724,1734856243220,-507.44987645,0.00019451,2]
[346271725,1734856243230,-700.0,0.00019451,2]
[346271726,1734856243240,-500.0,0.00019451,2]
[346271727,1734856243249,-509.61146923,0.00019451,2]
[346271728,1734856243258,-507.36641304,0.00019451,2]
[346271729,1734856243267,-500.0,0.00019451,2]
[346271730,1734856243276,-500.0,0.00019451,2]
[346271731,1734856243286,-513.35377712,0.00019451,2]
[346271733,1734856243295,-500.0,0.00019451,2]
[346271734,1734856243303,-500.0,0.00019451,2]
[346271735,1734856243312,-464.30509526,0.00019451,2]
[346271736,1734856243322,-530.49,0.00019451,2]
[346271737,1734856243331,-500.0,0.00019451,2]
[346271738,1734856243341,-500.0,0.00019451,2]
[346271739,1734856243350,-500.0,0.00019451,2]
[346271740,1734856243359,-500.0,0.00019451,2]
[346271741,1734856243368,-500.0,0.00019451,2]
[346271742,1734856243377,-179.58414036,0.00019451,2]
[346271743,1734856243387,-500.0,0.00019451,2]
[346271744,1734856243396,-647.90010559,0.00019451,120]
[346271745,1734856243405,-500.0,0.00019451,2]
[346271746,1734856243415,-500.0,0.00019451,2]
[346271747,1734856243424,-500.0,0.00019451,2]
[346271748,1734856243434,-500.0,0.00019451,2]
[346271749,1734856243443,-500.0,0.00019451,2]
[346271750,1734856243452,-500.0,0.00019451,2]
[346271751,1734856243462,-500.0,0.00019451,2]
[346271752,1734856243471,-500.0,0.00019451,2]
[346271753,1734856243480,-500.0,0.00019451,2]
[346271754,1734856243490,-500.0,0.00019451,2]
[346271755,1734856243500,-424.65345612,0.00019451,2]
[346271756,1734856243509,-500.0,0.00019451,2]
[346271757,1734856243519,-500.0,0.00019451,2]
[346271758,1734856243529,-512.3279452,0.00019451,2]
[346271759,1734856243540,-566.12377539,0.00019451,2]
[346271760,1734856243550,-500.0,0.00019451,2]
[346271761,1734856243559,-500.0,0.00019451,2]
[346271762,1734856243568,-500.0,0.00019451,2]
[346271763,1734856243578,-594.52,0.00019451,2]
[346271764,1734856243588,-500.0,0.00019451,2]
[346271765,1734856243598,-500.0,0.00019451,2]
[346271766,1734856243608,-435.91832901,0.00019451,2]
[346271767,1734856243618,-279.65374617,0.00019451,2]
[346271768,1734856243628,-500.0,0.00019451,2]
[346271769,1734856243638,-500.0,0.00019451,2]
[346271770,1734856243648,-500.0,0.00019451,2]
[346271771,1734856243659,-500.0,0.00019451,2]
[346271772,1734856243669,-500.0,0.00019451,2]
[346271773,1734856243678,-500.0,0.00019451,2]
[346271774,1734856243687,-500.0,0.00019451,2]
[346271775,1734856243697,-500.0,0.00019451,2]
[346271776,1734856243706,-576.47226738,0.00019451,2]
[346271777,1734856243716,-500.0,0.00019451,2]
[346271778,1734856243725,-500.0,0.00019451,2]
[346271779,1734856243735,-500.0,0.00019451,2]
[346271780,1734856243745,-500.0,0.00019451,2]
[346271781,1734856243755,-500.0,0.00019451,2]
[346271782,1734856243766,-500.0,0.00019451,2]
[346271783,1734856243776,-500.0,0.00019451,2]
[346271784,1734856243786,-323.12840061,0.00019451,2]
[346271785,1734856243796,-304.93570978,0.00019451,2]
[346271786,1734856243805,-500.0,0.00019451,2]
[346271787,1734856243814,-500.0,0.00019451,2]
[346271788,1734856243824,-500.0,0.00019451,2]
[346271789,1734856243834,-500.0,0.00019451,2]
[346271790,1734856243844,-647.16466093,0.00019451,2]
[346271791,1734856243853,-500.0,0.00019451,2]
[346271792,1734856243863,-500.0,0.00019451,2]
[346271793,1734856243872,-500.0,0.00019451,2]
[346271795,1734856243882,-500.0,0.00019451,2]
[346271797,1734856243894,-500.0,0.00019451,2]
[346271798,1734856243908,-500.0,0.00019451,2]